Workbook

Sheet Меню ГПД 32 руб.!!
A4: Утверждаю____________ | B4: Директор ООО"АБК-Пэймент" | I4: Согласовано | K4: Руководитель образовательного
B5: Рахматуллин Р.Р. | K5: учреждения
B9: Примерное цикличное двенадцатидневное меню группы продленного дня для учащихся образовательных учреждений Елабужского муниципального района РТ
A11: 1 неделя
A12: № Сб.рец | B12: Наименование продуктов | C12: Выход,г | D12: Стоимость,руб | E12: Белки | F12: Жиры | G12: Угл-ды | H12: Энер.ценность (ККАЛ) | I12: В1 | J12: С | K12: А | L12: Е | M12: Са | N12: Р | O12: Mg | P12: Fe
B13: ПОНЕДЕЛЬНИК
B14: Меню дополнительного питания
A15: № 102,105 Сбор.рец. На прод-ию для обуч. Во всех образ.учреж-Дели 2017 | B15: Суп картофельный с горохом с мясными фрикадельками | C15: 250/15 | E15: 8.48 | F15: 7.03 | G15: 16.65 | H15: 177.65 | I15: 0.24 | J15: 5.90 | K15: 3.00 | L15: 2.52 | M15: 45.90 | N15: 119.23 | O15: 40.40 | P15: 2.28
B16: Булочка "Детская" | C16: 100 | E16: 6.78 | F16: 13.96 | G16: 42.14 | H16: 321 | I16: 0.12 | J16: 0 | K16: 0 | L16: 5.1 | M16: 18.6 | N16: 64.2 | O16: 26.2 | P16: 1.2
A17: № 376 Сбор.рец. На прод-ию для обуч. Во всех образ.учреж-Дели 2017 | B17: Чай с сахаром | C17: 190/10 | E17: 0.07 | F17: 0.02 | G17: 10.01 | H17: 40 | I17: 0 | J17: 0.03 | K17: 0 | L17: 0 | M17: 10.95 | N17: 2.8 | O17: 1.4 | P17: 0.265
A18: табл 6 стр 134,144,Хим. Состав и калорийность российских продуктов питания Дели + 2012 | B18: Хлеб ржаной/пшеничный | C18: 20/20 | E18: 2.84 | F18: 0.4 | G18: 17.76 | H18: 86.6 | I18: 0.056 | J18: 0 | K18: 0 | L18: 0.5 | M18: 9.8 | N18: 43 | O18: 12.2 | P18: 1
B19: Итого: | C19: 605 | D19: 32 | E19: =SUM(E15:E18) -> 18.17 | F19: =SUM(F15:F18) -> 21.41 | G19: 86.56 | H19: 625.25 | I19: 0.41 | J19: 5.93 | K19: 3.00 | L19: 8.12 | M19: 85.25 | N19: 229.23 | O19: 80.20 | P19: 4.75
B22: ВТОРНИК
B23: Меню дополнительного питания
A24: № 289 Сбор.рец. На прод-ию для обуч. Во всех образ.учреж-Дели 2017 | B24: Рагу из птицы | C24: 50/200 | E24: 13.08 | F24: 13.18 | G24: 24.22 | H24: 268.60 | I24: 0.10 | J24: 17.42 | K24: 5.90 | L24: 2.86 | M24: 42.80 | N24: 123.92 | O24: 55.84 | P24: 2.51
A25: № 377 Сбор.рец. На прод-ию для обуч. Во всех образ.учреж-Дели 2017 | B25: Чай с сахаром и лимоном | C25: 185/10/5 | E25: 0.112 | F25: 0.018 | G25: 10.15 | H25: 41.32 | J25: 2.03 | K25: 0 | L25: 0.006 | M25: 13.25 | N25: 3.96 | O25: 2.16 | P25: 0.333
A26: табл 6 стр 134,144,Хим. Состав и калорийность российских продуктов питания Дели + 2012 | B26: Хлеб ржаной/пшеничный | C26: 20/20 | E26: 2.84 | F26: 0.4 | G26: 17.76 | H26: 86.6 | I26: 0.056 | J26: 0 | K26: 0 | L26: 0.5 | M26: 9.8 | N26: 43 | O26: 12.2 | P26: 1
B27: Итого: | C27: 490 | D27: 32 | E27: =SUM(E24:E26) -> 16.03 | F27: =SUM(F24:F26) -> 13.60 | G27: 52.13 | H27: 396.52 | I27: 0.16 | J27: 19.45 | K27: 5.90 | L27: 3.37 | M27: 65.85 | N27: 170.88 | O27: 70.20 | P27: 3.84
B30: СРЕДА
B31: Меню дополнительного питания
A32: № 96,105 Сбор.рец. На прод-ию для обуч. Во всех образ.учреж-Дели 2017 | B32: Рассольник ленинградский с мясными фрикадельками,со сметаной | C32: 250/22/10 | E32: 6.67 | F32: 9.17 | G32: 12.50 | H32: 166.59 | I32: 0.11 | J32: 8.53 | K32: 14.40 | L32: 2.52 | M32: 42.68 | N32: 108.51 | O32: 32.16 | P32: 1.29
A33: табл 6 стр,144,Хим. Состав и калорийность российских продуктов питания Дели + 2012 | B33: Вафли | C33: 50 | E33: 1.95 | F33: 15.3 | G33: 31.25 | H33: 271 | I33: 0.03 | K33: 3 | L33: 2.35 | M33: 4 | N33: 21 | O33: 3 | P33: 0.3
A34: № 344 Сбор.рец. На прод-ию для обуч. Во всех образ.учреж-Дели 2017 | B34: Компот из свежемороженных фруктов | C34: 200 | E34: 0.24 | F34: 0.14 | G34: 31.84 | H34: 116 | I34: 0.01 | J34: 0.73 | K34: 0 | L34: 0 | M34: 14 | N34: 8.94 | O34: 5.58 | P34: 0.14
A35: табл 6 стр,144,Хим. Состав и калорийность российских продуктов питания Дели + 2012 | B35: Хлеб ржаной | C35: 20 | E35: 1.32 | F35: 0.24 | G35: 7.92 | H35: 39.60 | I35: 0.03 | J35: 0.00 | K35: 0 | L35: 0.28 | M35: 5.80 | N35: 30.00 | O35: 9.40 | P35: 0.78
B36: Итого: | C36: 552 | D36: 32 | E36: =SUM(E32:E35) -> 10.18 | F36: =SUM(F32:F35) -> 24.85 | G36: 83.51 | H36: 593.19 | I36: 0.19 | J36: 9.26 | K36: 17.40 | L36: 5.15 | M36: 66.48 | N36: 168.45 | O36: 50.14 | P36: 2.51
B39: ЧЕТВЕРГ
B40: Меню дополнительного питания
A41: № 294Сбор.рец. На прод-ию для обуч. Во всех образ.учреж-Дели 2017; №366 дошкольн. 2016г | B41: Котлеты из мяса кур в томатном соусе | C41: 80/20 | E41: 14.1204 | F41: 8.4406 | G41: 14.5156 | H41: 190.9 | I41: 0.164 | J41: 1.195 | K41: 15.84 | L41: 54.692 | M41: 49.08 | N41: 66.048 | O41: 20.064 | P41: 2.9756
A42: № 171 Сбор.рец. На прод-ию для обуч. Во всех образ.учреж-Дели 2017 | B42: Каша гречневая рассыпчатая | C42: 180 | E42: 10.52 | F42: 2.75 | G42: 47.67 | H42: 256.76 | I42: 0.25 | J42: 0.00 | K42: -0.02 | L42: 0.47 | M42: 28.79 | N42: 248.82 | O42: 168.62 | P42: 5.65
A43: ТТК | B43: Кисель | C43: 200 | E43: 0.24 | F43: 0.12 | G43: 35.76 | H43: 145.08 | I43: 0 | J43: 80 | K43: 0 | L43: 0.18 | M43: 8.2 | N43: 6.42 | O43: 0.96 | P43: 0.28
A44: табл 6 стр 134,144,Хим. Состав и калорийность российских продуктов питания Дели + 2012 | B44: Хлеб ржаной/пшеничный | C44: 20/20 | E44: 2.84 | F44: 0.4 | G44: 17.76 | H44: 86.6 | I44: 0.056 | J44: 0 | K44: 0 | L44: 0.5 | M44: 9.8 | N44: 43 | O44: 12.2 | P44: 1
B45: Итого: | C45: 520 | D45: 32 | E45: =SUM(E41:E44) -> 27.72 | F45: =SUM(F41:F44) -> 11.71 | G45: 115.71 | H45: 679.34 | I45: 0.47 | J45: 81.20 | K45: 15.82 | L45: 55.84 | M45: 95.87 | N45: 364.29 | O45: 201.85 | P45: 9.91
B47: ПЯТНИЦА
B48: Меню дополнительного питания
A49: № 271 Сбор.рец. На прод-ию для обуч. Во всех образ.учреж-Дели 2017 | B49: Котлеты домашние | C49: 100 | E49: 13.57 | F49: 17.23 | G49: 10.12 | H49: 249.33 | I49: 0.17 | J49: 0.24 | K49: 3.42 | L49: 2.83 | M49: 16.84 | N49: 130.68 | O49: 20.09 | P49: 2.12
A50: № 304 Сбор.рец. На прод-ию для обуч. Во всех образ.учреж-Дели 2017 | B50: Рис отварной с маслом сливочным | C50: 180/3 | E50: 4.404 | F50: 8.628 | G50: 44.062 | H50: 271.44 | I50: 0.03 | J50: 0 | K50: 12 | L50: 0.37 | M50: 2.36 | N50: 74.03 | O50: 19.6 | P50: 0.636
A51: № 377 Сбор.рец. На прод-ию для обуч. Во всех образ.учреж-Дели 2017 | B51: Чай с сахаром и лимоном | C51: 185/10/5 | E51: 0.112 | F51: 0.018 | G51: 10.15 | H51: 41.32 | J51: 2.03 | K51: 0 | L51: 0.006 | M51: 13.25 | N51: 3.96 | O51: 2.16 | P51: 0.333
A52: табл 6 стр 134,144,Хим. Состав и калорийность российских продуктов питания Дели + 2012 | B52: Хлеб ржаной/пшеничный | C52: 20/20 | E52: 2.84 | F52: 0.4 | G52: 17.76 | H52: 86.6 | I52: 0.056 | J52: 0 | K52: 0 | L52: 0.5 | M52: 9.8 | N52: 43 | O52: 12.2 | P52: 1
B53: Итого: | C53: 523 | D53: 32 | E53: =SUM(E49:E52) -> 20.92 | F53: 26.28 | G53: 82.09 | H53: 648.69 | I53: 0.25 | J53: 2.27 | K53: 15.42 | L53: 3.71 | M53: 42.25 | N53: 251.67 | O53: 54.05 | P53: 4.09
B55: СУББОТА
B56: Меню дополнительного питания
A57: № 98 Сбор.рец. На прод-ию для обуч. Во всех образ.учреж-Дели 2017 | B57: Суп крестьянский с крупой с птицей,со сметаной | C57: 250/10/7 | E57: 4.00 | F57: 7.82 | G57: 6.38 | H57: 113.78 | I57: 0.05 | J57: 10.14 | K57: 12.81 | L57: 2.41 | M57: 47.39 | N57: 54.24 | O57: 16.83 | P57: 0.78
A58: табл 6 стр 136 Дели +2012 | B58: Печенье | C58: 50 | E58: 3.75 | F58: 4.9 | G58: 37.2 | H58: 208.50 | I58: 0.04 | J58: 0.00 | K58: 5 | L58: 1.75 | M58: 14.5 | N58: 45 | O58: 10 | P58: 1.05
A59: ТТК составлена на основании акта проработки 2019 г от 29.10.19 | B59: Напиток из замороженной черной смородины | C59: 200 | E59: 0.2 | F59: 0 | G59: 24.8 | H59: 102.00 | I59: 0 | J59: 2.4 | K59: 0 | L59: 0 | M59: 10 | N59: 2 | O59: 2 | P59: 0.2
A60: табл 6 стр,144,Хим. Состав и калорийность российских продуктов питания Дели + 2012 | B60: Хлеб ржаной | C60: 20 | E60: 1.32 | F60: 0.24 | G60: 7.92 | H60: 39.60 | I60: 0.03 | J60: 0.00 | K60: 0 | L60: 0.28 | M60: 5.80 | N60: 30.00 | O60: 9.40 | P60: 0.78
B61: Итого: | C61: 537 | D61: 32 | E61: =SUM(E57:E60) -> 9.27 | F61: =SUM(F57:F60) -> 12.96 | G61: 76.30 | H61: 463.88 | I61: 0.12 | J61: 12.54 | K61: 17.81 | L61: 4.44 | M61: 77.69 | N61: 131.24 | O61: 38.23 | P61: 2.81
B63: Всего за 6 дней: | C63: =C19+C27+C36+C45+C53+C61 -> 3227 | E63: =E19+E27+E36+E45+E53+E61 -> 102.30 | F63: 110.81 | G63: 496.30 | H63: 3406.87 | I63: 1.60 | J63: 130.64 | K63: 75.35 | L63: 80.63 | M63: 433.40 | N63: 1315.76 | O63: 494.67 | P63: 27.90
B89: Примерное цикличное двенадцатидневное меню группы продленного дня для учащихся образовательных учреждений Елабужского муниципального района РТ
A90: 2 неделя
A91: № Сб.рец | B91: Наименование продуктов | C91: Выход,г | D91: Стоимость,руб | E91: Белки | F91: Жиры | G91: Угл-ды | H91: Энер.ценность (ККАЛ) | I91: В1 | J91: С | K91: А | L91: Е | M91: Са | N91: Р | O91: Mg | P91: Fe
B92: ПОНЕДЕЛЬНИК
B93: Меню дополнительного питания
A94: № 280,331 Сбор.рец. На прод-ию для обуч. Во всех образ.учреж-Дели 2017 | B94: Фрикадельки мясные в томатно-сметанном соусе | C94: 55/50 | E94: 8.5 | F94: 11.21 | G94: 10.61 | H94: 180.00 | I94: 0.04 | J94: 0.27 | K94: 16.31 | L94: 2.67 | M94: 24.45 | N94: 79.59 | O94: 14.19 | P94: 5.29
A95: № 171 Сбор.рец. На прод-ию для обуч. Во всех образ.учреж-Дели 2017 | B95: Каша гречневая рассыпчатая | C95: 180 | E95: 10.524 | F95: 2.76 | G95: 47.676 | H95: 256.80 | I95: 0.252 | J95: 0 | K95: 0 | L95: 0.468 | M95: 28.788 | N95: 248.82 | O95: 168.624 | P95: 5.652
A96: № 376 Сбор.рец. На прод-ию для обуч. Во всех образ.учреж-Дели 2017 | B96: Чай с сахаром | C96: 190/10 | E96: 0.07 | F96: 0.02 | G96: 10.01 | H96: 40 | I96: 0 | J96: 0.03 | K96: 0 | L96: 0 | M96: 10.95 | N96: 2.8 | O96: 1.4 | P96: 0.265
A97: табл 6 стр 134,144,Хим. Состав и калорийность российских продуктов питания Дели + 2012 | B97: Хлеб ржаной/пшеничный | C97: 20/20 | E97: 2.84 | F97: 0.4 | G97: 17.76 | H97: 86.6 | I97: 0.056 | J97: 0 | K97: 0 | L97: 0.5 | M97: 9.8 | N97: 43 | O97: 12.2 | P97: 1
B98: Итого: | C98: 525 | D98: 32 | E98: =SUM(E94:E97) -> 21.93 | F98: =SUM(F94:F97) -> 14.39 | G98: 86.06 | H98: 563.40 | I98: 0.35 | J98: 0.30 | K98: 16.31 | L98: 3.64 | M98: 73.99 | N98: 374.21 | O98: 196.41 | P98: 12.21
B101: ВТОРНИК
B102: Меню дополнительного питания
A103: № 96,288 Сбор.рец. На прод-ию для обуч. Во всех образ.учреж-Дели 2017 | B103: Рассольник ленинградский с мясными фрикадельками,со сметаной | C103: 250/10/10 | E103: 4.62 | F103: 8.45 | G103: 12.37 | H103: 149.65 | I103: 0.10 | J103: 8.65 | K103: 15.82 | L103: 2.47 | M103: 43.31 | N103: 79.23 | O103: 27.10 | P103: 1.13
B104: Булочка "Детская" | C104: 100 | E104: 6.78 | F104: 13.96 | G104: 42.14 | H104: 321 | I104: 0.12 | J104: 0 | K104: 0 | L104: 5.1 | M104: 18.6 | N104: 64.2 | O104: 26.2 | P104: 1.2
A105: № 342 Сбор.рец. На прод-ию для обуч. Во всех образ.учреж-Дели 2017 | B105: Компот из свежих яблок | C105: 200 | E105: 0.16 | F105: 0.16 | G105: 27.88 | H105: 114.6 | I105: 0.012 | J105: 0.9 | K105: 0 | L105: 0.08 | M105: 14.18 | N105: 4.4 | O105: 5.14 | P105: 0.952
A106: табл 6 стр,144,Хим. Состав и калорийность российских продуктов питания Дели + 2012 | B106: Хлеб ржаной | C106: 20 | E106: 1.32 | F106: 0.24 | G106: 7.92 | H106: 39.60 | I106: 0.03 | J106: 0.00 | K106: 0 | L106: 0.28 | M106: 5.80 | N106: 30.00 | O106: 9.40 | P106: 0.78
B107: Итого: | C107: 590 | D107: 32 | E107: =SUM(E103:E106) -> 12.88 | F107: =SUM(F103:F106) -> 22.81 | G107: 90.31 | H107: 624.85 | I107: 0.27 | J107: 9.55 | K107: 15.82 | L107: 7.93 | M107: 81.89 | N107: 177.83 | O107: 67.84 | P107: 4.07
B110: СРЕДА
B111: Меню дополнительного питания
A112: № 234,330 Сбор.рец. На прод-ию для обуч. Во всех образ.учреж-Дели 2017 | B112: Биточки рыбные в сметанном соусе | C112: 80/20 | E112: 10.04 | F112: 7.21 | G112: 12.80 | H112: 156.83 | I112: 0.06 | J112: 0.26 | K112: 10.85 | L112: 4.06 | M112: 40.24 | N112: 135.50 | O112: 31.66 | P112: 1.19
A113: № 203 Сбор.рец. На прод-ию для обуч. Во всех образ.учреж-Дели 2017 | B113: Макароны отварные с маслом сливочным | C113: 180/3 | E113: 6.83 | F113: 2.93 | G113: 38.29 | H113: 206.96 | I113: 0.07 | J113: 0.00 | K113: 11.98 | L113: 0.97 | M113: 13.86 | N113: 45.54 | O113: 10.26 | P113: 1.01
A114: ТТК | B114: Кисель | C114: 200 | E114: 0.24 | F114: 0.12 | G114: 35.76 | H114: 145.08 | I114: 0 | J114: 80 | K114: 0 | L114: 0.18 | M114: 8.2 | N114: 6.42 | O114: 0.96 | P114: 0.28
A115: табл 6 стр 134,144,Хим. Состав и калорийность российских продуктов питания Дели + 2012 | B115: Хлеб ржаной/пшеничный | C115: 20/20 | E115: 2.84 | F115: 0.4 | G115: 17.76 | H115: 86.6 | I115: 0.056 | J115: 0 | K115: 0 | L115: 0.5 | M115: 9.8 | N115: 43 | O115: 12.2 | P115: 1
B116: Итого: | C116: 523 | D116: 32 | E116: =E112+E113+E115+E114 -> 19.95 | F116: =F112+F113+F115+F114 -> 10.65 | G116: 104.61 | H116: 595.47 | I116: 0.19 | J116: 80.26 | K116: 22.82 | L116: 5.71 | M116: 72.09 | N116: 230.46 | O116: 55.08 | P116: 3.48
B117: ЧЕТВЕРГ
B118: Меню дополнительного питания
A119: ТТК акт проработки от 25.12.2019 | B119: Жаркое из птицы | C119: 50/150 | E119: 17.01 | F119: 15.27 | G119: 41.76 | H119: 373.54 | I119: 0.33 | J119: 52.13 | K119: 29.10 | L119: 3.02 | M119: 57.91 | N119: 230.93 | O119: 81.56 | P119: 3.38
A120: № 376 Сбор.рец. На прод-ию для обуч. Во всех образ.учреж-Дели 2017 | B120: Чай с сахаром | C120: 190/10 | E120: 0.07 | F120: 0.02 | G120: 10.01 | H120: 40 | I120: 0 | J120: 0.03 | K120: 0 | L120: 0 | M120: 10.95 | N120: 2.8 | O120: 1.4 | P120: 0.265
A121: табл 6 стр 134,144,Хим. Состав и калорийность российских продуктов питания Дели + 2012 | B121: Хлеб ржаной/пшеничный | C121: 20/20 | E121: 2.84 | F121: 0.4 | G121: 17.76 | H121: 86.6 | I121: 0.056 | J121: 0 | K121: 0 | L121: 0.5 | M121: 9.8 | N121: 43 | O121: 12.2 | P121: 1
B122: Итого: | C122: 440 | D122: 32 | E122: =E119+E120+E121 -> 19.92 | F122: =F119+F120+F121 -> 15.69 | G122: 69.53 | H122: 500.14 | I122: 0.38 | J122: 52.16 | K122: 29.10 | L122: 3.52 | M122: 78.66 | N122: 276.73 | O122: 95.16 | P122: 4.64
B124: ПЯТНИЦА
B125: Меню дополнительного питания
A126: № 1 Сбор.рец. На прод-ию для обуч. Во всех образ.учреж-Дели 2017 | B126: Бутерброд с маслом | C126: 40 | E126: 2.36 | F126: 7.49 | G126: 14.89 | H126: 136 | I126: 0.034 | K126: 40 | L126: 0.44 | M126: 8.4 | N126: 22.5 | O126: 4.2 | P126: 0.35
A127: № 121 Сбор.рец. На прод-ию для обуч. Во всех образ.учреж-Дели 2017 | B127: Суп молочный с пшенной крупой | C127: 250 | E127: 3.71 | F127: 4.47 | G127: 7.68 | H127: 89.00 | I127: 0.05 | J127: 0.83 | K127: 33.00 | L127: 0.03 | M127: 159.50 | N127: 113.68 | O127: 17.68 | P127: 0.15
A128: ТТК № 310 от 25.12.2019г | B128: Напиток из апельсинов | C128: 200 | E128: 0.47 | F128: 0.11 | G128: 24.22 | H128: 102.63 | I128: 0.02 | J128: 31.58 | K128: 0.00 | L128: 0.11 | M128: 18.49 | N128: 12.11 | O128: 6.84 | P128: 0.22
A129: табл 6 стр,144,Хим. Состав и калорийность российских продуктов питания Дели + 2012 | B129: Хлеб ржаной | C129: 20 | E129: 1.32 | F129: 0.24 | G129: 7.92 | H129: 39.60 | I129: 0.03 | J129: 0.00 | K129: 0 | L129: 0.28 | M129: 5.80 | N129: 30.00 | O129: 9.40 | P129: 0.78
B130: Итого: | C130: 510 | D130: 32 | E130: =E126+E127+E128+E129 -> 7.9 | F130: =F126+F127+F128+F129 -> 12.3 | G130: 54.7 | H130: 367.2 | I130: 0.1 | J130: 32.4 | K130: 73.0 | L130: 0.9 | M130: 192.2 | N130: 178.3 | O130: 38.1 | P130: 1.5
B132: СУББОТА
B133: Меню дополнительного питания
A134: № 97,105Сбор.рец. На прод-ию для обуч. Во всех образ.учреж-Дели 2017 | B134: Суп картофельный с мясными фрикадельками | C134: 250/22 | E134: 6.73 | F134: 5.41 | G134: 17.03 | H134: 157.14 | I134: 0.15 | J134: 12.11 | K134: 4.40 | L134: 1.42 | M134: 35.18 | N134: 123.41 | O134: 38.48 | P134: 1.54
A135: табл 6 стр 136 Дели +2012 | B135: Печенье | C135: 50 | E135: 3.75 | F135: 4.9 | G135: 37.2 | H135: 208.50 | I135: 0.04 | J135: 0.00 | K135: 5 | L135: 1.75 | M135: 14.5 | N135: 45 | O135: 10 | P135: 1.05
A136: № 342 Сбор.рец. На прод-ию для обуч. Во всех образ.учреж-Дели 2017 | B136: Напиток из яблок | C136: 200 | E136: 0.16 | F136: 0.16 | G136: 27.88 | H136: 114.6 | I136: 0.012 | J136: 0.9 | K136: 0 | L136: 0.08 | M136: 14.18 | N136: 4.4 | O136: 5.14 | P136: 0.952
A137: табл 6 стр,144,Хим. Состав и калорийность российских продуктов питания Дели + 2012 | B137: Хлеб ржаной | C137: 30 | E137: 2.00 | F137: 0.36 | G137: 12.00 | H137: 60.00 | I137: 0.05 | J137: 0.00 | K137: 0 | L137: 0.42 | M137: 8.79 | N137: 45.45 | O137: 14.24 | P137: 1.18
B138: Итого: | C138: 552 | D138: 32 | E138: =E134+E135+E136+E137 -> 12.64 | F138: =F134+F135+F136+F137 -> 10.83 | G138: 94.11 | H138: 540.24 | I138: 0.25 | J138: 13.01 | K138: 9.40 | L138: 3.67 | M138: 72.65 | N138: 218.26 | O138: 67.87 | P138: 4.73
B140: Всего: | C140: =C98+C107+C116+C130+C122+C138 -> 3140 | E140: =E98+E107+E116+E130+E122+E138 -> 95.18 | F140: 86.67 | G140: 499.34 | H140: 3191.33 | I140: 1.57 | J140: 187.69 | K140: 166.45 | L140: 25.32 | M140: 571.48 | N140: 1455.77 | O140: 520.48 | P140: 30.62
B141: Всего за 12 дней: | C141: =C63+C140 -> 6367 | E141: =E63+E140 -> 197.48 | F141: 197.48 | G141: 995.63 | H141: 6598.21 | I141: 3.17 | J141: 318.33 | K141: 241.80 | L141: 105.96 | M141: 1004.87 | N141: 2771.53 | O141: 1015.14 | P141: 58.53
B142: В среднем на 1 учащегося в день | C142: =C141/12 -> 531 | D142: 32 | E142: =E141/12 -> 16.46 | F142: 16.46 | G142: 82.97 | H142: 549.85 | I142: 0.26 | J142: 26.53 | K142: 20.15 | L142: 8.83 | M142: 83.74 | N142: 230.96 | O142: 84.60 | P142: 4.88
